fUSD/lending_fUSD_20240612
["ID","MTS","AMOUNT","RATE_DAILY","PERIOD"]
[329176812,1718152280461,-611.42,0.00022328,2]
[329176813,1718152280472,-500.0,0.00022328,2]
[329176814,1718152280483,-500.0,0.00022328,2]
[329176815,1718152280493,-500.0,0.00022328,2]
[329176816,1718152280503,-386.76,0.00022328,2]
[329176817,1718152280514,-1302.36,0.00022328,2]
[329176818,1718152280525,-500.0,0.00022328,2]
[329176819,1718152280536,-770.19,0.00022328,2]
[329176820,1718152280547,-583.36,0.00022328,2]
[329176821,1718152280558,-500.0,0.00022328,2]
[329176822,1718152280569,-500.0,0.00022328,2]
[329176823,1718152280581,-500.0,0.00022328,2]
[329176824,1718152280591,-281.3863909,0.00022328,2]
[329176825,1718152280603,-1251.7,0.00022328,2]
[329176826,1718152280613,-2724.7,0.00022328,2]
[329176827,1718152280624,-1242.44,0.00022328,2]
[329176828,1718152280636,-500.0,0.00022328,2]
[329176829,1718152280648,-958.23,0.00022328,2]
[329176830,1718152280659,-715.59,0.00022328,2]
[329176831,1718152280669,-500.0,0.00022328,2]
[329176832,1718152280679,-581.19,0.00022328,2]
[329176833,1718152280690,-333.89897003,0.00022328,2]
[329176834,1718152280703,-2185.89,0.00022328,2]
[329176835,1718152280714,-859.34,0.00022328,2]
[329176836,1718152280726,-1285.65,0.00022328,2]
[329176837,1718152280737,-565.93,0.00022328,2]
[329176838,1718152280749,-637.51,0.00022328,2]
[329176839,1718152280761,-500.0,0.00022328,2]
[329176840,1718152280772,-1027.85,0.00022328,2]
[329176841,1718152280784,-500.0,0.00022328,2]
[329176842,1718152280797,-1828.02,0.00022328,2]
[329176843,1718152280808,-1832.91,0.00022328,2]
[329176844,1718152280818,-500.0,0.00022328,2]
[329176845,1718152280829,-879.61,0.00022328,2]
[329176846,1718152280840,-1675.58,0.00022328,2]
[329176847,1718152280850,-843.32,0.00022328,2]
[329176848,1718152280861,-510.69786886,0.00022328,2]
[329176849,1718152280872,-775.96,0.00022328,2]
[329176850,1718152280881,-546.12,0.00022328,2]
[329176851,1718152280892,-2473.16,0.00022328,2]
[329176852,1718152280907,-500.0,0.00022328,2]
[329176853,1718152280919,-1644.66,0.00022328,2]
[329176854,1718152280930,-608.83,0.00022328,2]
[329176855,1718152280940,-6166.54,0.00022328,2]
[329176856,1718152280951,-500.0,0.00022328,2]
[329176857,1718152280961,-1432.45,0.00022328,2]
[329176858,1718152280972,-11639.91,0.00022328,2]
[329176859,1718152280982,-684.92,0.00022328,2]
[329176860,1718152280993,-500.0,0.00022328,2]
[329176861,1718152281003,-720.68,0.00022328,2]
[329176862,1718152281013,-836.87,0.00022328,2]
[329176863,1718152281024,-500.0,0.00022328,2]
[329176864,1718152281034,-2116.39,0.00022328,2]
[329176865,1718152281045,-2982.93,0.00022328,2]
[329176866,1718152281055,-6038.81,0.00022328,2]
[329176867,1718152281066,-500.0,0.00022328,2]
[329176868,1718152281076,-500.0,0.00022328,2]
[329176869,1718152281086,-2381.43,0.00022328,2]
[329176870,1718152281096,-500.0,0.00022328,2]
[329176871,1718152281109,-544.79,0.00022328,2]
[329176872,1718152281120,-500.0,0.00022328,2]
[329176873,1718152281130,-500.0,0.00022328,2]
[329176874,1718152281141,-3028.7,0.00022328,2]
[329176875,1718152281154,-500.0,0.00022328,2]
[329176876,1718152281164,-1373.33,0.00022328,2]
[329176877,1718152281174,-1677.62,0.00022328,2]
[329176878,1718152281184,-1337.01,0.00022328,2]
[329176879,1718152281195,-714.82,0.00022328,2]
[329176880,1718152281205,-500.0,0.00022328,2]
[329176881,1718152281216,-500.0,0.00022328,2]
[329176882,1718152281226,-673.21,0.00022328,2]
[329176883,1718152281236,-8750.37,0.00022328,2]
[329176884,1718152281247,-500.0,0.00022328,2]
[329176885,1718152281257,-799.51,0.00022328,2]
[329176886,1718152281268,-5029.8,0.00022328,2]
[329176887,1718152281279,-1374.54,0.00022328,2]
[329176888,1718152281289,-438.61738162,0.00022328,2]
[329176889,1718152281300,-14635.7,0.00022328,2]
[329176890,1718152281311,-55467.75,0.00022328,2]
[329176891,1718152281322,-500.0,0.00022328,2]
[329176892,1718152281333,-500.0,0.00022328,2]
[329176893,1718152281344,-1639.97,0.00022328,2]
[329176894,1718152281354,-1476.61,0.00022328,2]
[329176895,1718152281365,-500.0,0.00022328,2]
[329176896,1718152281377,-500.0,0.00022328,2]
[329176897,1718152281388,-1694.28,0.00022328,2]
[329176898,1718152281400,-611.49,0.00022328,2]
[329176899,1718152281412,-8487.8,0.00022328,2]
[329176900,1718152281423,-500.0,0.00022328,2]
[329176901,1718152281434,-500.0,0.00022328,2]
[329176902,1718152281444,-500.0,0.00022328,2]
[329176903,1718152281454,-4233.25,0.00022328,2]
[329176904,1718152281464,-31639.75,0.00022328,2]
[329176905,1718152281475,-3757.38,0.00022328,2]
[329176906,1718152281486,-1040.34,0.00022328,2]
[329176907,1718152281497,-507.86137763,0.00022328,2]
[329176908,1718152281507,-500.0,0.00022328,2]
[329176909,1718152281518,-500.0,0.00022328,2]
[329176910,1718152281528,-500.0,0.00022328,2]
[329176911,1718152281539,-1454.99,0.00022328,2]
[329176912,1718152281549,-859.52,0.00022328,2]
[329176913,1718152281560,-2491.31,0.00022328,2]
[329176914,1718152281570,-2280.28,0.00022328,2]
[329176915,1718152281581,-667.99,0.00022328,2]
[329176916,1718152281592,-500.0,0.00022328,2]
[329176917,1718152281603,-948.31,0.00022328,2]
[329176918,1718152281613,-3248.8,0.00022328,2]
[329176919,1718152281624,-1784.52,0.00022328,2]
[329176920,1718152281634,-2626.46,0.00022328,2]
[329176921,1718152281645,-500.0,0.00022328,2]
[329176922,1718152281656,-1004.2,0.00022328,2]
[329176923,1718152281666,-1145.88,0.00022328,2]
[329176924,1718152281677,-1408.1,0.00022328,2]
[329176925,1718152281687,-2273.45,0.00022328,2]
[329176926,1718152281697,-500.0,0.00022328,2]
[329176927,1718152281707,-1209.21,0.00022328,2]
[329176928,1718152281717,-930.43,0.00022328,2]
[329176929,1718152281727,-788.93,0.00022328,2]
[329176930,1718152281738,-13437.77,0.00022328,2]
[329176931,1718152281748,-1170.24,0.00022328,2]
[329176932,1718152281758,-3818.53,0.00022328,2]
[329176933,1718152281768,-1149.05,0.00022328,2]
[329176934,1718152281778,-500.0,0.00022328,2]
[329176935,1718152281789,-3130.09,0.00022328,2]
[329176936,1718152281799,-500.0,0.00022328,2]
[329176937,1718152281808,-937.79,0.00022328,2]
[329176938,1718152281817,-1310.08,0.00022328,2]
[329176939,1718152281827,-1636.15,0.00022328,2]
[329176940,1718152281837,-4252.32,0.00022328,2]
[329176941,1718152281847,-2563.57,0.00022328,2]
[329176942,1718152281856,-500.0,0.00022328,2]
[329176943,1718152281866,-500.0,0.00022328,2]
[329176944,1718152281876,-2992.8,0.00022328,2]
[329176945,1718152281886,-822.74,0.00022328,2]
[329176946,1718152281897,-1159.58,0.00022328,2]
[329176947,1718152281912,-15717.99,0.00022328,2]
[329176948,1718152281926,-500.0,0.00022328,2]
[329176949,1718152281936,-2005.55,0.00022328,2]
[329176950,1718152281946,-500.0,0.00022328,2]
[329176951,1718152281957,-6296.83,0.00022328,2]
[329176952,1718152281967,-3223.86,0.00022328,2]
[329176953,1718152281978,-6945.2,0.00022328,2]
[329176954,1718152281988,-693.01,0.00022328,2]
[329176955,1718152281999,-814.28,0.00022328,2]
[329176956,1718152282010,-508.33,0.00022328,2]
[329176957,1718152282022,-500.0,0.00022328,2]
[329176958,1718152282033,-500.0,0.00022328,2]
[329176959,1718152282043,-500.0,0.00022328,2]
[329176960,1718152282054,-500.0,0.00022328,2]
[329176961,1718152282064,-1572.98,0.00022328,2]
[329176962,1718152282074,-601.01,0.00022328,2]
[329176963,1718152282084,-6193.09,0.00022328,2]
[329176964,1718152282095,-500.0,0.00022328,2]
[329176965,1718152282105,-500.0,0.00022328,2]
[329176966,1718152282115,-4096.16,0.00022328,2]
[329176967,1718152282125,-4787.7,0.00022328,2]
[329176968,1718152282136,-772.43,0.00022328,2]
[329176969,1718152282147,-1791.65,0.00022328,2]
[329176970,1718152282157,-7973.12,0.00022328,2]
[329176971,1718152282168,-500.0,0.00022328,2]
[329176972,1718152282178,-500.0,0.00022328,2]
[329176973,1718152282189,-5053.24,0.00022328,2]
[329176974,1718152282199,-5354.26,0.00022328,2]
[329176975,1718152282209,-3948.83,0.00022328,2]
[329176976,1718152282220,-553.84,0.00022328,2]
[329176977,1718152282230,-500.0,0.00022328,2]
[329176978,1718152282240,-1340.43,0.00022328,2]
[329176979,1718152282250,-709.59,0.00022328,2]
[329176980,1718152282260,-2722.79,0.00022328,2]
[329176981,1718152282270,-500.0,0.00022328,2]
[329176982,1718152282281,-3052.41,0.00022328,2]
[329176983,1718152282291,-500.0,0.00022328,2]
[329176984,1718152282302,-500.0,0.00022328,2]
[329176985,1718152282312,-553.91,0.00022328,2]
[329176986,1718152282324,-1947.62,0.00022328,2]
[329176987,1718152282334,-2248.59,0.00022328,2]
[329176988,1718152282344,-1267.75,0.00022328,2]
[329176989,1718152282354,-21764.24,0.00022328,2]
[329176990,1718152282364,-500.0,0.00022328,2]
[329176991,1718152282376,-664.97,0.00022328,2]
[329176992,1718152282386,-3643.8,0.00022328,2]
[329176993,1718152282396,-933.23,0.00022328,2]
[329176994,1718152282407,-993.14,0.00022328,2]
[329176995,1718152282417,-2014.17,0.00022328,2]
[329176996,1718152282428,-3779.59,0.00022328,2]
[329176997,1718152282439,-2124.27,0.00022328,2]
[329176998,1718152282450,-500.0,0.00022328,2]
[329176999,1718152282461,-500.0,0.00022328,2]
[329177000,1718152282471,-1155.31,0.00022328,2]
[329177001,1718152282482,-424.16900121,0.00022328,2]
[329177002,1718152282493,-2069.74,0.00022328,2]
[329177003,1718152282503,-1829.75,0.00022328,2]
[329177004,1718152282514,-535.12,0.00022328,2]
[329177005,1718152282524,-966.69,0.00022328,2]
[329177006,1718152282535,-7244.58,0.00022328,2]
[329177007,1718152282545,-501.41,0.00022328,2]
[329177008,1718152282556,-500.0,0.00022328,2]
[329177009,1718152282566,-2887.58,0.00022328,2]
[329177010,1718152282577,-573.32,0.00022328,2]
[329177011,1718152282588,-225.74764798,0.00022328,2]
[329177012,1718152282599,-887.04,0.00022328,2]
[329177013,1718152282609,-798.17,0.00022328,2]
[329177014,1718152282620,-1475.27,0.00022328,2]
[329177015,1718152282631,-500.0,0.00022328,2]
[329177016,1718152282642,-2320.17,0.00022328,2]
[329177017,1718152282654,-5774.73,0.00022328,2]
[329177018,1718152282665,-4440.03,0.00022328,2]
[329177019,1718152282676,-1224.67,0.00022328,2]
[329177020,1718152282686,-500.0,0.00022328,2]
[329177021,1718152282696,-2701.18,0.00022328,2]
[329177022,1718152282706,-500.0,0.00022328,2]
[329177023,1718152282717,-664.9,0.00022328,2]
[329177024,1718152282727,-3233.51,0.00022328,2]
[329177025,1718152282737,-500.0,0.00022328,2]
[329177026,1718152282747,-500.0,0.00022328,2]
[329177027,1718152282758,-10039.9,0.00022328,2]
[329177028,1718152282768,-4631.33,0.00022328,2]
[329177029,1718152282778,-5258.17,0.00022328,2]
[329177030,1718152282788,-1536.62,0.00022328,2]
[329177031,1718152282798,-3703.49,0.00022328,2]
[329177032,1718152282809,-5740.59,0.00022328,2]
[329177033,1718152282819,-679.79,0.00022328,2]
[329177034,1718152282829,-527.5,0.00022328,2]
[329177035,1718152282839,-500.0,0.00022328,2]
[329177036,1718152282849,-500.0,0.00022328,2]
[329177037,1718152282859,-1010.03,0.00022328,2]
[329177038,1718152282869,-4174.68,0.00022328,2]
[329177039,1718152282880,-1523.49,0.00022328,2]
[329177040,1718152282890,-826.15,0.00022328,2]
[329177041,1718152282903,-3077.97,0.00022328,2]
[329177042,1718152282916,-500.0,0.00022328,2]
[329177043,1718152282928,-500.0,0.00022328,2]
[329177044,1718152282938,-500.0,0.00022328,2]
[329177045,1718152282947,-1737.39,0.00022328,2]
[329177046,1718152282958,-3723.53,0.00022328,2]
[329177047,1718152282969,-1279.11,0.00022328,2]
[329177048,1718152282980,-3873.2,0.00022328,2]
[329177049,1718152282990,-921.67,0.00022328,2]
[329177050,1718152283001,-3554.93,0.00022328,2]
[329177051,1718152283012,-13892.86,0.00022328,2]
[329177052,1718152283022,-1815.54,0.00022328,2]
[329177053,1718152283032,-3828.74,0.00022328,2]
[329177054,1718152283043,-2826.64,0.00022328,2]
[329177055,1718152283053,-500.0,0.00022328,2]
[329177056,1718152283063,-1478.12,0.00022328,2]
[329177057,1718152283073,-1688.75,0.00022328,2]
[329177058,1718152283084,-1745.11,0.00022328,2]
[329177059,1718152283094,-1169.97,0.00022328,2]
[329177060,1718152283108,-2660.92,0.00022328,2]
[329177061,1718152283118,-4162.53,0.00022328,2]
[329177062,1718152283128,-585.03,0.00022328,2]
[329177063,1718152283139,-553.25,0.00022328,2]
[329177064,1718152283150,-1499.27,0.00022328,2]
[329177065,1718152283160,-500.0,0.00022328,2]
[329177066,1718152283171,-3311.26,0.00022328,2]
[329177067,1718152283183,-500.0,0.00022328,2]
[329177068,1718152283193,-500.0,0.00022328,2]
[329177069,1718152283203,-9068.66,0.00022328,2]
[329177070,1718152283213,-5034.1,0.00022328,2]
[329177071,1718152283223,-500.0,0.00022328,2]
[329177072,1718152283234,-1677.98,0.00022328,2]
[329177073,1718152283245,-814.67,0.00022328,2]
[329177074,1718152283258,-4308.06,0.00022328,2]
[329177075,1718152283270,-1697.49,0.00022328,2]
[329177076,1718152283281,-500.0,0.00022328,2]
[329177077,1718152283292,-561.99,0.00022328,2]
[329177078,1718152283302,-2144.81,0.00022328,2]
[329177079,1718152283313,-500.0,0.00022328,2]
[329177080,1718152283325,-1323.25,0.00022328,2]
[329177081,1718152283336,-3545.84,0.00022328,2]
[329177082,1718152283347,-1141.61,0.00022328,2]
[329177083,1718152283358,-1853.92,0.00022328,2]
[329177084,1718152283368,-990.08,0.00022328,2]
[329177085,1718152283379,-3158.79,0.00022328,2]
[329177086,1718152283390,-13300.03,0.00022328,2]
[329177087,1718152283401,-3056.61,0.00022328,2]
[329177088,1718152283411,-4887.15,0.00022328,2]
[329177089,1718152283421,-1422.63,0.00022328,2]
[329177090,1718152283432,-521.15,0.00022328,2]
[329177091,1718152283442,-3636.03,0.00022328,2]
[329177092,1718152283452,-500.0,0.00022328,2]
[329177093,1718152283463,-1437.79,0.00022328,2]
[329177094,1718152283474,-500.0,0.00022328,2]
[329177095,1718152283484,-1459.51,0.00022328,2]
[329177096,1718152283495,-500.0,0.00022328,2]
[329177097,1718152283506,-2751.22,0.00022328,2]
[329177098,1718152283517,-593.82,0.00022328,2]
[329177099,1718152283528,-1998.63,0.00022328,2]
[329177100,1718152283539,-500.0,0.00022328,2]
[329177101,1718152283550,-1206.33,0.00022328,2]
[329177102,1718152283561,-919.64,0.00022328,2]
[329177103,1718152283571,-938.25,0.00022328,2]
[329177104,1718152283582,-653.38,0.00022328,2]
[329177105,1718152283592,-500.0,0.00022328,2]
[329177106,1718152283602,-500.0,0.00022328,2]
[329177107,1718152283613,-4598.01,0.00022328,2]
[329177108,1718152283623,-1110.54,0.00022328,2]
[329177109,1718152283633,-2178.93,0.00022328,2]
[329177110,1718152283643,-3919.34,0.00022328,2]
[329177111,1718152283654,-500.0,0.00022328,2]
[329177112,1718152283664,-500.0,0.00022328,2]
[329177113,1718152283675,-2168.86,0.00022328,2]
[329177114,1718152283685,-1758.54,0.00022328,2]
[329177115,1718152283696,-988.74,0.00022328,2]
[329177116,1718152283706,-2592.38,0.00022328,2]
[329177117,1718152283716,-1057.94,0.00022328,2]
[329177118,1718152283726,-1265.05,0.00022328,2]
[329177119,1718152283737,-500.0,0.00022328,2]
[329177120,1718152283747,-2116.3,0.00022328,2]
[329177121,1718152283757,-500.0,0.00022328,2]
[329177122,1718152283768,-1500.0,0.00022407,2]
[329177123,1718152283779,-587.826679,0.0002241,2]
[329177124,1718152283789,-2351.306719,0.0002241,2]
[329177125,1718152283800,-17771.82498795,0.00022433,2]
[329177126,1718152283810,-1576.58702836,0.00022433,2]
[329177127,1718152283820,-383.03280681,0.00022433,2]
[329177128,1718152283831,-267255.47131332,0.00022437,2]
[329177129,1718152283841,-150.0,0.00022464,7]
[329177130,1718152283851,-500.0,0.00022465,2]
[329177131,1718152283861,-500.0,0.00022465,2]
[329177132,1718152283872,-259.57150424,0.00022465,2]
[329177133,1718152283883,-500.0,0.00022465,2]
[329177134,1718152283893,-250.0,0.00022465,2]
[329177135,1718152284021,-500.0,0.00022465,2]
[329177136,1718152284041,-500.0,0.00022465,2]
[329177137,1718152284051,-500.0,0.00022465,2]
[329177138,1718152284062,-500.0,0.00022465,2]
[329177139,1718152284072,-500.0,0.00022465,2]
[329177140,1718152284082,-500.0,0.00022465,2]
[329177141,1718152284094,-1099.52,0.00022465,2]
[329177142,1718152284108,-500.0,0.00022465,2]
[329177143,1718152284118,-1325.77,0.00022465,2]
[329177144,1718152284131,-500.0,0.00022465,2]
[329177145,1718152284142,-500.0,0.00022465,2]
[329177146,1718152284153,-500.0,0.00022465,2]
[329177147,1718152284165,-543.55,0.00022465,2]
[329177148,1718152284175,-500.0,0.00022465,2]
[329177149,1718152284187,-500.0,0.00022465,2]
[329177150,1718152284197,-500.0,0.00022465,2]
[329177151,1718152284208,-810.56,0.00022465,2]
[329177152,1718152284219,-500.0,0.00022465,2]
[329177153,1718152284230,-500.0,0.00022465,2]
[329177154,1718152284241,-500.0,0.00022465,2]
[329177155,1718152284252,-604.04,0.00022465,2]
[329177156,1718152284263,-563.6,0.00022465,2]
[329177157,1718152284274,-500.0,0.00022465,2]
[329177158,1718152284285,-711.93,0.00022465,2]
[329177159,1718152284297,-555.37,0.00022465,2]
[329177160,1718152284308,-500.0,0.00022465,2]
[329177161,1718152284319,-500.0,0.00022465,2]
[329177162,1718152284330,-500.0,0.00022465,2]
[329177163,1718152284341,-775.81,0.00022465,2]
[329177164,1718152284351,-500.0,0.00022465,2]
[329177165,1718152284361,-500.0,0.00022465,2]
[329177166,1718152284373,-500.0,0.00022465,2]
[329177167,1718152284384,-500.0,0.00022465,2]
[329177168,1718152284394,-378.63046968,0.00022465,2]
[329177169,1718152284406,-748.54,0.00022465,2]
[329177170,1718152284416,-500.0,0.00022465,2]
[329177171,1718152284427,-500.0,0.00022465,2]
[329177172,1718152284439,-750.16,0.00022465,2]
[329177173,1718152284450,-500.0,0.00022465,2]
[329177174,1718152284461,-500.0,0.00022465,2]
[329177175,1718152284472,-500.0,0.00022465,2]
[329177176,1718152284483,-500.0,0.00022465,2]
[329177177,1718152284493,-500.0,0.00022465,2]
[329177178,1718152284504,-500.0,0.00022465,2]
[329177179,1718152284515,-500.0,0.00022465,2]
[329177180,1718152284525,-500.0,0.00022465,2]
[329177181,1718152284536,-500.0,0.00022465,2]
[329177182,1718152284547,-500.0,0.00022465,2]
[329177183,1718152284558,-500.0,0.00022465,2]
[329177184,1718152284568,-500.0,0.00022465,2]
[329177185,1718152284578,-789.95,0.00022465,2]
[329177186,1718152284589,-500.0,0.00022465,2]
[329177187,1718152284600,-500.0,0.00022465,2]
[329177188,1718152284610,-500.0,0.00022465,2]
[329177189,1718152284620,-500.0,0.00022465,2]
[329177190,1718152284631,-500.0,0.00022465,2]
[329177191,1718152284641,-966.66,0.00022465,2]
[329177192,1718152284651,-701.89,0.00022465,2]
[329177193,1718152284661,-500.0,0.00022465,2]
[329177194,1718152284671,-500.0,0.00022465,2]
[329177195,1718152284681,-500.0,0.00022465,2]
[329177196,1718152284692,-500.0,0.00022465,2]
[329177197,1718152284703,-529.44,0.00022465,2]
[329177198,1718152284713,-727.38,0.00022465,2]
[329177199,1718152284723,-591.24,0.00022465,2]
[329177200,1718152284734,-538.09,0.00022465,2]
[329177201,1718152284744,-200.0,0.00022465,2]
[329177202,1718152284754,-500.0,0.00022465,2]
[329177203,1718152284765,-729.66,0.00022465,2]
[329177204,1718152284776,-500.0,0.00022465,2]
[329177205,1718152284787,-500.0,0.00022465,2]
[329177206,1718152284797,-670.93,0.00022465,2]
[329177207,1718152284808,-500.0,0.00022465,2]
[329177208,1718152284818,-500.0,0.00022465,2]
[329177209,1718152284829,-500.0,0.00022465,2]
[329177210,1718152284839,-500.0,0.00022465,2]
[329177211,1718152284849,-500.0,0.00022465,2]
[329177212,1718152284860,-500.0,0.00022465,2]
[329177213,1718152284870,-523.1,0.00022465,2]
[329177214,1718152284880,-988.71,0.00022465,2]
[329177215,1718152284891,-500.0,0.00022465,2]
[329177216,1718152284918,-160.7812392,0.00022465,2]
[329177217,1718152284928,-500.0,0.00022465,2]
[329177218,1718152284939,-530.44,0.00022465,2]
[329177219,1718152284950,-595.33,0.00022465,2]
[329177220,1718152284960,-1941.81,0.00022465,2]
[329177221,1718152284971,-840.47,0.00022465,2]
[329177222,1718152284981,-500.0,0.00022465,2]
[329177223,1718152284992,-500.0,0.00022465,2]
[329177224,1718152285002,-561.48,0.00022465,2]
[329177225,1718152285012,-500.0,0.00022465,2]
[329177226,1718152285022,-800.04,0.00022465,2]
[329177227,1718152285032,-214.75388111,0.00022465,2]
[329177228,1718152285043,-500.0,0.00022465,2]
[329177229,1718152285053,-1283.53,0.00022465,2]
[329177230,1718152285064,-704.89,0.00022465,2]
[329177231,1718152285074,-500.0,0.00022465,2]
[329177232,1718152285084,-1896.67,0.00022465,2]
[329177233,1718152285095,-500.0,0.00022465,2]
[329177234,1718152285108,-500.0,0.00022465,2]
[329177235,1718152285118,-518.99,0.00022465,2]
[329177236,1718152285128,-500.0,0.00022465,2]
[329177237,1718152285138,-500.0,0.00022465,2]
[329177238,1718152285148,-500.0,0.00022465,2]
[329177239,1718152285159,-518.56,0.00022465,2]
[329177240,1718152285169,-1025.14,0.00022465,2]
[329177241,1718152285180,-1865.88,0.00022465,2]
[329177242,1718152285190,-500.0,0.00022465,2]
[329177243,1718152285201,-819.72,0.00022465,2]
[329177244,1718152285212,-500.0,0.00022465,2]
[329177245,1718152285222,-651.19,0.00022465,2]
[329177246,1718152285233,-826.56,0.00022465,2]
[329177247,1718152285244,-500.0,0.00022465,2]
[329177248,1718152285254,-1601.82,0.00022465,2]
[329177249,1718152285265,-1153.34,0.00022465,2]
[329177250,1718152285275,-1568.24,0.00022465,2]
[329177251,1718152285286,-544.75,0.00022465,2]
[329177252,1718152285296,-738.52,0.00022465,2]
[329177253,1718152285307,-840.37,0.00022465,2]
[329177254,1718152285317,-500.0,0.00022465,2]
[329177255,1718152285328,-500.0,0.00022465,2]
[329177256,1718152285338,-500.0,0.00022465,2]
[329177257,1718152285348,-729.39,0.00022465,2]
[329177258,1718152285359,-540.87,0.00022465,2]
[329177259,1718152285370,-500.0,0.00022465,2]
[329177260,1718152285380,-615.88,0.00022465,2]
[329177261,1718152285391,-1809.39,0.00022465,2]
[329177262,1718152285402,-1076.6,0.00022465,2]
[329177263,1718152285412,-500.0,0.00022465,2]
[329177264,1718152285422,-816.28,0.00022465,2]
[329177265,1718152285433,-504.47,0.00022465,2]
[329177266,1718152285444,-500.0,0.00022465,2]
[329177267,1718152285455,-500.0,0.00022465,2]
[329177268,1718152285466,-798.81,0.00022465,2]
[329177269,1718152285476,-703.67,0.00022465,2]
[329177270,1718152285487,-512.35,0.00022465,2]
[329177271,1718152285499,-661.03,0.00022465,2]
[329177272,1718152285510,-500.0,0.00022465,2]
[329177273,1718152285521,-2099.17,0.00022465,2]
[329177274,1718152285532,-1005.72,0.00022465,2]
[329177275,1718152285542,-500.0,0.00022465,2]
[329177276,1718152285553,-1340.89,0.00022465,2]
[329177277,1718152285563,-500.0,0.00022465,2]
[329177278,1718152285574,-783.34,0.00022465,2]
[329177279,1718152285584,-610.2,0.00022465,2]
[329177280,1718152285595,-1983.47,0.00022465,2]
[329177281,1718152285606,-1398.35,0.00022465,2]
[329177282,1718152285617,-500.0,0.00022465,2]
[329177283,1718152285627,-500.0,0.00022465,2]
[329177284,1718152285638,-606.83,0.00022465,2]
[329177285,1718152285649,-621.86,0.00022465,2]
[329177286,1718152285659,-556.91934802,0.00022465,2]
[329177287,1718152285670,-500.0,0.00022465,2]
[329177288,1718152285681,-504.13,0.00022465,2]
[329177289,1718152285692,-275.16818981,0.00022465,2]
[329177290,1718152285703,-907.37,0.00022465,2]
[329177291,1718152285715,-500.0,0.00022465,2]
[329177292,1718152285726,-783.93,0.00022465,2]
[329177293,1718152285737,-1012.19,0.00022465,2]
[329177294,1718152285748,-500.0,0.00022465,2]
[329177295,1718152285758,-500.0,0.00022465,2]
[329177296,1718152285775,-1202.81,0.00022465,2]
[329177297,1718152285786,-1163.8,0.00022465,2]
[329177298,1718152285798,-500.0,0.00022465,2]
[329177299,1718152285809,-500.0,0.00022465,2]
[329177300,1718152285820,-565.33,0.00022465,2]
[329177301,1718152285831,-606.13,0.00022465,2]
[329177302,1718152285842,-588.67195235,0.00022465,2]
[329177303,1718152285853,-984.93,0.00022465,2]
[329177304,1718152285865,-1994.75,0.00022465,2]
[329177305,1718152285877,-1645.17,0.00022465,2]
[329177306,1718152285888,-500.0,0.00022465,2]
[329177307,1718152285898,-500.0,0.00022465,2]
[329177308,1718152285917,-771.29,0.00022465,2]
[329177309,1718152285928,-500.0,0.00022465,2]
[329177310,1718152285938,-590.08,0.00022465,2]
[329177311,1718152285948,-1133.5,0.00022465,2]